Cogmind - Beta 12 @@@ ROGUE MODE // 2023.03.29 @ 16:07:09 Player: ArabianSandBoa Result: Destroyed by as-21212 with Assembled F-torch Performance ------------- Evolutions (0) 0 Regions Visited (4) 800 Robots Destroyed (5) 25 Value Destroyed (113) 113 Prototype IDs (25) 500 Alien Tech Used (0) 0 Bonus (300) 300 TOTAL SCORE: 1738 Bonus ------- Aligned with FarCom 300 Cogmind --------- Core Integrity 0/250 Matter 100/300 Energy 100/100 System Corruption 1% Temperature Cool (60) Movement Treading (320) Ox2 Location -9/Mines Parts ------- > --- POWER (1) -------- (None) > --- PROPULSION (2) --- Light Treads Light Treads > --- UTILITY (2) ------ Huge Storage Unit > --- WEAPON (2) ------- Light Cannon Light Cannon > --- INVENTORY (25) --- Light Ion Engine Nuclear Core Nuclear Core Reinforced Deuterium Engine Fission Core Carbon-fiber Leg Cesium-ion Thruster Large Storage Unit Humpback Compact Battery (200) Trap Scanner Melee Analysis Suite Cloak of Protection Power Shielding Improved Power Shielding EM Pulse Gun Particle Cannon Heavy Particle Cannon Light Assault Rifle Light Cannon Rocket Launcher Katana Peak State ------------ > --- POWER ------------ Light Ion Engine > --- PROPULSION ------- Wheel Compact Wheel > --- UTILITY ---------- Huge Storage Unit Hardened Medium Armor Plating > --- WEAPON ----------- Heavy Particle Cannon Light Cannon > --- INVENTORY -------- Light Ion Engine Nuclear Core Nuclear Core Reinforced Deuterium Engine Fission Core Light Treads Light Treads Carbon-fiber Leg Cesium-ion Thruster Large Storage Unit Humpback Compact Battery Trap Scanner Cloak of Protection Power Shielding Improved Power Shielding EM Pulse Gun Particle Cannon Light Assault Rifle Light Cannon Light Cannon Rocket Launcher [Rating: 16] Favorites ----------- Power Light Ion Engine Engine Light Ion Engine Propulsion Compact Wheel Treads Light Treads Leg Aluminum Leg Wheel Compact Wheel Utility Huge Storage Unit Storage Huge Storage Unit Protection Hardened Medium Armor Plating Weapon Light Assault Rifle Energy Gun EM Pulse Gun Energy Cannon Heavy Particle Cannon Ballistic Gun Light Assault Rifle Ballistic Cannon Light Cannon Build | -11 -10 -10 -10 -9 ------- Run | Jun Mat Min Exi Min Slots Evolved . | . . . . . Power . | . . . . . Propulsion . | . . . . . Utility . | . . . . . Weapon . | . . . . . Parts Attached 11 | . 4 . 1 6 Power . | . . . . . Engine . | . . . . . Core . | . . . . . Reactor . | . . . . . Propulsion 4 | . 2 . . 2 Treads 2 | . . . . 2 Leg . | . . . . . Wheel 2 | . 2 . . . Hover . | . . . . . Flight . | . . . . . Utility 2 | . 1 . 1 . Device . | . . . . . Storage 1 | . 1 . . . Processor . | . . . . . Hackware . | . . . . . Protection 1 | . . . 1 . Artifact . | . . . . . Weapon 5 | . 1 . . 4 Energy Gun 1 | . 1 . . . Energy Cannon 1 | . . . . 1 Ballistic Gun . | . . . . . Ballistic Cannon 3 | . . . . 3 Launcher . | . . . . . Special Weapon . | . . . . . Impact Weapon . | . . . . . Slashing Weapon . | . . . . . Piercing Weapon . | . . . . . Special Melee Weapon . | . . . . . Unidentified Prototypes . | . . . . . Parts Lost 4 | . . . . 4 Power 1 | . . . . 1 Propulsion 2 | . . . . 2 Utility 1 | . . . . 1 Weapon . | . . . . . Highest Loss Streak 4 | . . . . 4 To Critical Strikes . | . . . . . Average Slot Usage (%) 86 | . 99 100 73 72 Engine 12 | . 14 14 14 7 Treads 3 | . . . . 13 Wheel 24 | . 26 28 28 14 Storage 24 | . 27 28 25 14 Protection 2 | . . . 2 7 Energy Gun 7 | . 14 14 1 . Ballistic Gun 7 | . 14 14 1 . Ballistic Cannon 3 | . . . . 14 Naked Turns . | . . . . . Heaviest Build 91 | 10 91 91 91 91 Greatest Support 40 | 20 26 26 26 40 Greatest Overweight (x) 3 | . 3 3 3 3 Average Overweight (x) 2 | . 2 3 3 2 Largest Inventory Capacity 25 | . 25 25 25 25 Average Capacity 24 | . 23 25 25 25 Most Carried 25 | . 7 17 24 25 Average Carried 17 | . 3 15 22 22 Final Capacity 25 | 8 25 25 25 25 Final Carried 24 | 6 6 17 24 23 Class Distribution -------------------- 100% | Mutant Dominant Class ---------------- Mutant | -10/Materials Mutant | -10/Mines Mutant | -10/Exiles Mutant | -9/Mines Resources | -11 -10 -10 -10 -9 ----------- Run | Jun Mat Min Exi Min Matter Collected 311 | 200 40 11 . 60 Remotely . | . . . . . Salvage Created 190 | . 151 . . 39 Parts 8 | . 7 . . 1 Haulers Intercepted . | . . . . . Recyclers Shooed . | . . . . . Parts Field Recycled . | . . . . . Retrieved Matter . | . . . . . Parts Self-Destructed . | . . . . . Prevented . | . . . . . Kills | -11 -10 -10 -10 -9 ------- Run | Jun Mat Min Exi Min Combat Hostiles Destroyed 11 | . 4 . . 7 Guns 4 | . 4 . . . Cannons 7 | . . . . 7 Classes Destroyed 4 | . 2 . . 2 Worker 1 | . . . . 1 Swarmer 1 | . 1 . . . Grunt 3 | . 3 . . . Assembled 7 | . . . . 7 Best Kill Streak 5 | . 4 . . 5 Combat Bots Only 5 | . 4 . . 5 Max Kills in Single Turn 1 | . 1 . . 1 Gunslinging . | . . . . . Exploded . | . . . . . Melee . | . . . . . Uniques/NPCs Destroyed . | . . . . . Combat | -11 -10 -10 -10 -9 -------- Run | Jun Mat Min Exi Min Damage Taken 1178 | . 121 . . 1057 Core 254 | . 11 . . 243 Absorbed by Shields . | . . . . . Core Remaining (%) 100 | 100 . . . . Volleys Fired 38 | . 11 . . 27 Largest 2 | . 2 . . 2 Hottest 110 | . 60 . . 110 Shots Fired 77 | . 22 . . 55 Gun 22 | . 22 . . . Cannon 55 | . . . . 55 Launcher . | . . . . . Special . | . . . . . Kinetic 61 | . 11 . . 50 Thermal 16 | . 11 . . 5 Explosive . | . . . . . Electromagnetic . | . . . . . Robot Hit Streak 9 | . 5 . . 9 Robot Miss Streak 6 | . 2 . . 6 Penetration Max . | . . . . . Secondary Targets . | . . . . . Shots Hit Robots 44 | . 14 . . 30 Core Hits 21 | . 8 . . 13 Critical Kills . | . . . . . Critical Parts Destroyed . | . . . . . Critical Strikes 1 | . . . . 1 Blast 1 | . . . . 1 Melee Attacks . | . . . . . Impact . | . . . . . Slashing . | . . . . . Piercing . | . . . . . Sneak Attacks . | . . . . . Combat Hostiles . | . . . . . Follow-up Attacks . | . . . . . Damage Inflicted 733 | . 149 . . 584 Guns 149 | . 149 . . . Cannons 584 | . . . . 584 Explosions . | . . . . . Melee . | . . . . . Ramming . | . . . . . Kinetic 549 | . 65 . . 484 Thermal 184 | . 84 . . 100 Explosive . | . . . . . Electromagnetic . | . . . . . Impact . | . . . . . Slashing . | . . . . . Piercing . | . . . . . Highest Corruption 1 | . 1 1 1 1 Average Corruption 1 | . 1 1 1 1 Corruption Purged . | . . . . . Corruption Blocked . | . . . . . Effects 8 | . . 4 1 3 Message Errors 1 | . . 1 . . Matter Fused 1 | . . 1 . . Energy Discharges 2 | . . 1 . 1 Data Loss (major) 2 | . . . 1 1 Misfires 1 | . . . . 1 Alerts 1 | . . 1 . . Overload Shots . | . . . . . Overflow Damage 15 | . . . . 15 Projectiles 15 | . . . . 15 Explosions . | . . . . . Melee . | . . . . . Knockbacks 6 | . . . . 6 Impact . | . . . . . Kinetic 6 | . . . . 6 Secondary . | . . . . . Self-Inflicted Damage . | . . . . . Shots . | . . . . . Rammed . | . . . . . Targets Rammed . | . . . . . Kicked . | . . . . . Crushed . | . . . . . Highest Temperature 285 | . 84 . . 285 Average Temperature 101 | . 38 . . 139 Received Heat Transfer 208 | . 48 . . 160 Effects 2 | . . . . 2 Interference 2 | . . . . 2 Siege Activations . | . . . . . Robots Corrupted . | . . . . . Combat Hostiles . | . . . . . Parts Fried . | . . . . . Impact Corruptions . | . . . . . Robots Melted . | . . . . . Combat Hostiles . | . . . . . Parts Melted . | . . . . . Heat Transferred 348 | . 200 . . 148 Parts Sabotaged . | . . . . . Parts Stolen . | . . . . . Parts Stripped . | . . . . . Power Chain Reactions . | . . . . . Missiles Intercepted . | . . . . . Alert | -11 -10 -10 -10 -9 ------- Run | Jun Mat Min Exi Min Peak Influence 124 | . 124 48 . 15 Initial 48 | . . 48 . . Average 34 | . 65 43 . 1 Maximum Alert Level . | . . . . . Low Security (%) 100 | . 100 100 . 100 Level 1 . | . . . . . Level 2 . | . . . . . Level 3 . | . . . . . Level 4 . | . . . . . Level 5 . | . . . . . High Security . | . . . . . Max Security . | . . . . . Squads Dispatched 3 | . 2 1 . . Investigation 3 | . 2 1 . . Extermination . | . . . . . Reinforcement . | . . . . . Assault . | . . . . . Garrison . | . . . . . Intercept . | . . . . . Searches Triggered . | . . . . . Construction Impeded . | . . . . . Haulers Reinforced . | . . . . . Active Scanning Responses . | . . . . . Cargo Convoy Interrupts . | . . . . . Stealth | -11 -10 -10 -10 -9 --------- Run | Jun Mat Min Exi Min Distress Signals 1 | . 1 . . . Communications Jammed . | . . . . . Distress Signals . | . . . . . Times Spotted 21 | . 6 . . 15 Peak Tracking Total 10 | . 2 . . 10 Tactical Retreats 2 | . . . . 2 Traps | -11 -10 -10 -10 -9 ------- Run | Jun Mat Min Exi Min Traps Triggered . | . . . . . Indirectly . | . . . . . Trap Hack Attempts . | . . . . . Triggered . | . . . . . Disarmed . | . . . . . Reprogrammed . | . . . . . Reused . | . . . . . Traps Extracted . | . . . . . Installed . | . . . . . Triggered . | . . . . . Machines | -11 -10 -10 -10 -9 ---------- Run | Jun Mat Min Exi Min Machines Disabled . | . . . . . Max in Single Turn . | . . . . . Machines Repaired . | . . . . . Machines Sabotaged . | . . . . . Overloaded Fab Kills . | . . . . . Hacking | -11 -10 -10 -10 -9 --------- Run | Jun Mat Min Exi Min Machines Accessed 5 | . 3 1 1 . Terminals 2 | . 2 . . . Fabricators . | . . . . . Repair Stations . | . . . . . Recycling Units 1 | . 1 . . . Scanalyzers . | . . . . . Garrison Access . | . . . . . Total Hacks 11 | . 9 1 1 . Successful 5 | . 3 1 1 . Failed 6 | . 6 . . . Catastrophic . | . . . . . Database Lockouts . | . . . . . Manual 3 | . 2 . 1 . Terminals 8 | . 8 . . . Fabricators . | . . . . . Repair Stations . | . . . . . Recycling Units 1 | . 1 . . . Scanalyzers . | . . . . . Garrison Access . | . . . . . Terminal Hacks 4 | . 2 1 1 . Prototype ID Bank 1 | . 1 . . . Open Door 1 | . . 1 . . Emergency Access Points 1 | . 1 . . . EX-Prototype ID Bank 1 | . . . 1 . Fabricator Hacks . | . . . . . Repair Station Hacks . | . . . . . Recycling Unit Hacks 1 | . 1 . . . Report Inventory 1 | . 1 . . . Scanalyzer . | . . . . . Garrison Access Hacks . | . . . . . Unauthorized Hacks . | . . . . . Terminals . | . . . . . Fabricators . | . . . . . Repair Stations . | . . . . . Recycling Units . | . . . . . Scanalyzers . | . . . . . Garrison Access . | . . . . . Data Cores Recovered . | . . . . . Used . | . . . . . Hacking Detections 3 | . 3 . . . Full Trace Events 2 | . 2 . . . Feedback Events 1 | . 1 . . . Corruption 1 | . 1 . . . Feedback Blocked . | . . . . . Robot Schematics Acquired . | . . . . . Robots Built . | . . . . . Authchips . | . . . . . Time . | . . . . . Total Robot Build Rating . | . . . . . Part Schematics Acquired . | . . . . . Parts Built . | . . . . . Authchips . | . . . . . Time . | . . . . . Total Part Build Rating . | . . . . . Parts Repaired . | . . . . . Time . | . . . . . Parts Recycled . | . . . . . Recycled Matter . | . . . . . Retrieved Matter . | . . . . . Retrieved Components . | . . . . . Parts Scanalyzed . | . . . . . Part Schematics Acquired . | . . . . . Parts Damaged . | . . . . . Bothacking | -11 -10 -10 -10 -9 ------------ Run | Jun Mat Min Exi Min Used RIF Installer . | . . . . . Robots Hacked . | . . . . . Non-combat . | . . . . . Combat . | . . . . . Robot Hacks Applied . | . . . . . Relay Couplers Released . | . . . . . Fabnet Peak Effective % . | . . . . . Robots Rewired . | . . . . . Allies Hacked . | . . . . . Hacks Repelled . | . . . . . Allies | -11 -10 -10 -10 -9 -------- Run | Jun Mat Min Exi Min Total Allies . | . . . . . Largest Group . | . . . . . Highest-Rated Group . | . . . . . Highest-Rated Ally . | . . . . . Total Orders . | . . . . . Ally Attacks . | . . . . . Total Damage . | . . . . . Kills . | . . . . . Allies Corrupted . | . . . . . Allies Melted . | . . . . . Intel | -11 -10 -10 -10 -9 ------- Run | Jun Mat Min Exi Min Robot Analysis Total . | . . . . . Derelict Logs Recovered 2 | . . 2 . . Drone Launches . | . . . . . Drone Recoveries . | . . . . . Exploration | -11 -10 -10 -10 -9 ------------- Run | Jun Mat Min Exi Min Turns Passed 1167 | . 150 443 314 260 Spaces Moved 710 | 1 75 315 220 99 Core . | . . . . . Treads 18 | . . . . 18 Legs 10 | 1 9 . . . Wheels 682 | . 66 315 220 81 Hover . | . . . . . Flight . | . . . . . Fastest Speed 120 | 120 120 135 135 135 Average Speed 139 | 120 133 135 135 168 Slowest Speed 320 | 120 135 135 135 320 Overloaded Moves . | . . . . . Propulsion Burnouts . | . . . . . Robots Hopped . | . . . . . Cave-ins Triggered . | . . . . . Exploration Rate (%) 39 | 2 17 82 60 34 Regions Visited 4 Branch Regions 3 Pre-discovered Areas . | . . . . . Known Exits Taken . | . . . . . Unknown Exits Taken 4 | 1 1 1 1 . Scrap Searched 2 | . . 1 . 1 Spaces Dug . | . . . . . Terrain Destroyed 1 | . . . . 1 Melee . | . . . . . Projectile 1 | . . . . 1 AOE . | . . . . . Terrain Rammed . | . . . . . Walls Destroyed . | . . . . . Machines Disabled . | . . . . . Actions | -11 -10 -10 -10 -9 --------- Run | Jun Mat Min Exi Min Total 818 | . 108 333 238 139 Wait 31 | . 9 8 10 4 Move 706 | . 74 314 219 99 Hop . | . . . . . Pick Up 23 | . 4 11 5 3 Fast Attach 1 | . 1 . . . Attach 8 | . 3 . 1 4 Detach 4 | . 2 . 2 . Swap 2 | . . . . 2 Drop 5 | . 4 . 1 . Fire 38 | . 11 . . 27 Melee . | . . . . . Ram . | . . . . . Kick . | . . . . . Crush . | . . . . . Escape Stasis . | . . . . . Rewire . | . . . . . Trap . | . . . . . Miscellaneous . | . . . . . Route ------- -11/Junkyard -10/Materials -10/Mines (discovered 2 exits: [*Mat] / *Exi) -10/Exiles -9/Mines History --------- Turn | Location | Event 1 | -11/Junkyard | Discovered new exit (range 0) 1 | -11/Junkyard | Entered Materials 24 | -10/Materials | Discovered new exit (range 15) 151 | -10/Materials | Entered Mines 162 | -10/Mines | Met a Derelict shopkeep closing up shop 208 | -10/Mines | Learned Materials security intel 211 | -10/Mines | Learned Materials security intel 304 | -10/Mines | Build established: Mutant 427 | -10/Mines | Discovered new exit (range 12) 522 | -10/Mines | Received a Rocket Launcher from a helpful Derelict 589 | -10/Mines | Deemed a non-threat by the Exiles lab entrance 589 | -10/Mines | Discovered new exit (range 5) 594 | -10/Mines | Entered Exiles 635 | -10/Exiles | Met 8R-AWN 654 | -10/Exiles | Met EX-HEX 690 | -10/Exiles | Met EX-BIN 706 | -10/Exiles | Aligned with FarCom system 708 | -10/Exiles | Given EX-Vault access code 741 | -10/Exiles | Opened EX-Vault 748 | -10/Exiles | Found Cloak of Protection 779 | -10/Exiles | Warned to stay clear of 0b10 Research branches 818 | -10/Exiles | Met EX-DEC 887 | -10/Exiles | Discovered new exit (range 14) 908 | -10/Exiles | Left Exiles lab with Cloak of Protection 908 | -10/Exiles | Entered Mines 1000 | -9/Mines | Assembled infested the area 1034 | -9/Mines | Core integrity fell below 50% 1061 | -9/Mines | Core integrity fell below 20% 1071 | -9/Mines | Lost 4 parts (1p2n1u) 1168 | -9/Mines | Destroyed by as-21212 with Assembled F-torch Last Messages --------------- 01135_ as-39089 destroyed. 01136_ U-05 Engineer lays Concrete. 01137_ K-01 Serf collects debris. 01138_ U-05 Engineer lays Concrete. 01142_ K-01 Serf collects debris. 01142_ U-05 Engineer lays Concrete. 01143_ U-05 Engineer builds a Wall. 01143_ U-05 Engineer lays Concrete. 01145_ U-05 Engineer builds a Wall. 01146_ K-01 Serf collects debris. 01147_ U-05 Engineer builds a Wall. 01149_ K-01 Serf destroyed. 01150_ as-35731 destroyed. 01150_ U-05 Engineer lays Concrete. 01151_ U-05 Engineer builds a Wall. 01159_ Acquired Katana. 01160_ Acquired 35 matter. 01164_ U-05 Engineer lays Concrete. 01166_ Acquired Melee Analysis Suite. 01168_ Critical hit (Burn: +80). Map ----- +----------------------------------------------------+ | ?????????????????????????????????????????????????? | | ?????????????????????????????????????????????????? | | ?????????????????????????????????????????????????? | | ?????????????????????????????????????????????????? | | ?????????????????????????????????????????????????? | | ?????????????????????????????????????????????????? | | ?????????????????????????????????????????????????? | | ?????????????????????????????????????????????????? | | ?????????????????????????????????????????????????? | | ?????????????????????????????????????????????????? | | ?????????????????????????????????????????????????? | | ?????????????????????????????????????????????????? | | ?????????????????????????????????????????????????? | | ?????????????????????????????????????????????????? | | ?????????????????????????????????????????????????? | | ??????????????????????????##?????###?????????????? | | ###????######????????????? #????$ ??????????????? | | #??### ######????????!#???$ ???????????????? | | # #?## # # ##?????##%#?? #????????????????? | | # ### ## # ##???## ### #????????????????? | | #"%" ## ##?## ?????????????????? | | " % #?# ???????????????????? | | % ### #????????????????????? | | % ### #?????????????????????? | | # # ## ##?????????????????????? | | " ### % %@#??????????????????????? | | ## ##### % %*%! #?????????????????????? | | ?# ##???# # % % #????????????????????? | | # ##????# < ## %! %=%??????????????????? | | # #????# ###### *%= !%%!= ????????????????? | | # ????# ##????## =a ####% #??????????????? | | ## ##???## ##??????## ##?????#??????????????? | | ?######?????##?????????# ##?????????????????????? | | ???????????????????????#!%#??????????????????????? | | ???????????????????????#%=#??????????????????????? | | ???????????????????????#%%#??????????????????????? | | ??????????????????????? #??????????????????????? | | ???????????????????????####??????????????????????? | | ?????????????????????????????????????????????????? | | ?????????????????????????????????????????????????? | | ?????????????????????????????????????????????????? | | ?????????????????????????????????????????????????? | | ?????????????????????????????????????????????????? | | ?????????????????????????????????????????????????? | | ?????????????????????????????????????????????????? | | ?????????????????????????????????????????????????? | | ?????????????????????????????????????????????????? | | ?????????????????????????????????????????????????? | | ?????????????????????????????????????????????????? | | ?????????????????????????????????????????????????? | +----------------------------------------------------+ Best States ------------- Heat Dissipation 25 Energy Generation 10 Energy Capacity 125 Matter Stores 300 Matter Capacity 300 Sight Range 16 Terrain Scan Density 10 Armor Coverage 225 Evasion (%) 45 Recoil Reduction 2 Item Schematics ----------------- None Robot Schematics ------------------ None Fabricated ------------ Nothing Alien Tech Used ----------------- None Achievements -------------- None Challenges ------------ None Game ------ Seed TrackerGreatArmor Manual? 0 Play Time 00:08:52 Cumulative 513.7 hours Start 2023.03.29 @ 16:00:37 End 2023.03.29 @ 16:07:09 Sessions 1 Manual Loads 0 Difficulty Rogue Special Mode None Game No. 546 Rogue 546 Adventurer 0 Explorer 0 Win Type - Total 1 Types 1/0/0/0/0/0/0/0/0 Lore% 64 Gallery% 83 Achievement% 65 Wizard Run 0 Options --------- ASCII 0 Keyboard 0 Movement Mouse Keybinds 0 Fullscreen 2 Font 24/Smallcaps Map View 76x50 Tactical HUD 1 Map Filters NONE Filters NONE Steam 1 RUN: 7c879ad2-1a7d-4346-8874-ac6479cf5bc7